bitfinex/quotes_ETHUSD_20260106
["timestamp","ask_amount","ask_price","bid_price","bid_amount"]
[1767708785318,9.17936478,3268.2,3266.7,0.01836519]
[1767708785498,12.23915304,3268.2,3266.5,0.01836519]
[1767708785705,9.17936478,3268.2,3266.7,0.01836519]
[1767708785920,12.23915304,3268.2,3266.7,0.01836519]
[1767708786119,0.8,3268.1,3266.8,0.01836519]
[1767708786438,0.8,3268.0,3267.0,0.01836519]
[1767708786602,0.8,3268.0,3266.8,0.01836519]
[1767708786926,0.8,3268.0,3266.9,0.01836519]
[1767708787230,0.8,3268.0,3266.3,0.01836519]
[1767708787831,0.8,3268.0,3266.1,0.01836519]
[1767708788031,1.77752244,3268.0,3266.1,0.01836519]
[1767708788331,0.03824501,3268.4,3265.7,0.02448505]
[1767708788332,6.11938928,3268.3,3267.5,0.01836519]
[1767708788531,0.03824735,3268.2,3267.4,0.01836519]
[1767708788714,0.03824735,3268.2,3267.6,0.01836519]
[1767708788912,0.03824735,3268.2,3265.3,3.06247389]
[1767708789228,0.03824735,3268.2,3267.0,0.01836519]
[1767708789805,0.8,3268.2,3267.0,0.01836519]
[1767708790005,0.03824735,3268.2,3267.2,0.01836519]
[1767708790423,0.8,3268.4,3267.4,0.01836519]
[1767708790739,0.03824618,3268.3,3267.4,0.01836519]
[1767708791037,0.002,3267.7,3267.2,0.01836519]
[1767708791839,0.002,3267.7,3267.1,0.01836519]
[1767708792018,0.002,3267.7,3266.9,0.01836519]
[1767708792929,0.002,3267.7,3267.1,0.01836519]
[1767708793108,0.0402532,3267.7,3267.1,0.01836519]
[1767708793521,0.002,3267.7,3267.0,0.01836519]
[1767708794037,0.002,3267.7,3267.2,0.01836519]
[1767708794614,0.002,3267.7,3267.4,0.01836519]
[1767708794808,0.002,3267.7,3267.2,0.01836519]
[1767708795133,0.002,3267.7,3266.7,0.01836519]
[1767708795442,0.002,3267.7,3266.9,0.01836519]
[1767708795812,0.002,3267.7,3266.6,0.01936519]
[1767708796136,0.002,3267.7,3266.9,0.01836519]
[1767708796304,0.002,3267.7,3267.1,0.01836519]
[1767708796710,6.11437503,3268.0,3267.0,0.01836519]
[1767708796936,0.97752244,3269.0,3267.3,0.01836519]
[1767708796937,0.03825086,3267.9,3267.3,0.01836519]
[1767708797139,9.21563828,3268.9,3267.5,0.01836519]
[1767708797319,0.8,3268.8,3267.5,0.01836519]
[1767708797517,0.0382415,3268.7,3267.3,0.01836519]
[1767708797717,0.0382415,3268.7,3266.7,0.01836519]
[1767708797933,1.01576394,3268.7,3267.0,0.01836519]
[1767708798323,0.8,3268.6,3267.2,0.01836519]
[1767708798542,9.39834246,3268.5,3267.2,0.01836519]
[1767708798868,0.8,3268.4,3267.2,0.01836519]
[1767708799039,0.03824618,3268.3,3267.1,0.01836519]
[1767708799638,0.03824618,3268.3,3266.8,0.01836519]
[1767708799828,0.03824618,3268.3,3267.0,0.01836519]
[1767708800216,1.01576862,3268.3,3266.8,0.01836519]
[1767708800413,1.01576862,3268.3,3266.6,0.01936519]
[1767708800414,9.17964564,3268.1,3266.6,0.01936519]
[1767708800622,0.03824969,3268.0,3266.6,0.01936519]
[1767708801125,0.03824969,3268.0,3266.8,0.01836519]
[1767708801427,0.03824969,3268.0,3266.6,0.001]
[1767708801829,0.03824969,3268.0,3266.7,0.01836519]
[1767708802014,0.03824969,3268.0,3266.6,0.001]
[1767708802538,9.18020745,3267.9,3266.6,0.001]
[1767708802739,0.83825203,3267.8,3266.6,0.001]
[1767708803338,0.83825203,3267.8,3266.7,0.01836519]
[1767708804046,0.83825203,3267.8,3266.6,0.001]
[1767708804757,9.18076932,3267.7,3266.6,0.001]
[1767708804974,0.03825437,3267.6,3266.9,0.001]
[1767708805319,0.03825437,3267.6,3266.6,0.001]
[1767708805563,0.03825437,3267.6,3265.8,0.01836519]
[1767708805727,9.18076932,3267.7,3266.1,0.01836519]
[1767708805927,0.03825437,3267.6,3266.3,0.01836519]
[1767708806128,0.8,3267.5,3266.3,0.01836519]
[1767708806323,0.03825671,3267.4,3266.7,0.01836519]
[1767708806523,0.8,3268.0,3267.1,0.01836519]
[1767708806723,3.09832001,3267.9,3266.7,0.01836519]
[1767708806936,9.18020745,3267.9,3266.3,0.01836519]
[1767708807447,0.8,3267.8,3266.5,0.01836519]
[1767708807642,0.0382532,3267.7,3266.5,0.01836519]
[1767708807855,0.0382532,3267.7,3266.3,0.01836519]
[1767708808727,9.1810503,3267.6,3266.3,0.01836519]
[1767708808949,0.03825554,3267.5,3266.3,0.01836519]
[1767708809161,1.01577798,3267.5,3265.5,0.01836519]
[1767708809360,1.01577798,3267.5,3266.5,0.01836519]
[1767708809567,3.05997552,3268.0,3266.9,0.01836519]
[1767708809768,0.97752244,3268.7,3267.3,0.01836519]
[1767708809937,0.83723559,3268.6,3267.2,0.01836519]
[1767708810337,0.83723559,3268.6,3266.9,0.0163652]
[1767708810580,0.27670907,3268.5,3266.9,0.0163652]
[1767708810734,6.11938928,3268.3,3266.8,0.01836519]
[1767708810935,3.05969464,3268.3,3267.0,0.01836519]
[1767708811155,0.83723559,3268.2,3266.3,0.01836519]
[1767708811368,0.8,3268.1,3266.7,0.01836519]
[1767708811675,0.03723559,3268.0,3266.8,0.01836519]
[1767708811876,0.8,3268.0,3266.8,0.01836519]
[1767708812163,0.03723559,3267.9,3267.0,0.01836519]
[1767708812841,0.97752244,3268.8,3267.0,0.01836519]
[1767708812842,0.03723559,3268.2,3267.2,0.01836519]
[1767708813041,0.03723559,3268.1,3267.2,0.01836519]
[1767708813243,3.05932021,3268.7,3267.4,0.01836519]
[1767708813448,0.83723559,3268.6,3267.4,0.01836519]
[1767708813767,0.8,3269.2,3268.0,0.01836519]
[1767708814069,0.03723559,3269.1,3267.8,0.01836519]
[1767708814441,0.03723559,3269.1,3267.4,0.01836519]
[1767708814640,0.03723559,3269.1,3267.6,0.01836519]
[1767708814841,3.05903946,3269.0,3267.6,0.01836519]
[1767708815039,0.03723559,3268.9,3267.6,0.01836519]
[1767708815639,0.03723559,3268.9,3267.8,0.01836519]
[1767708815962,0.8,3269.2,3268.0,0.01836519]
[1767708816764,3.05903946,3269.0,3267.8,0.01836519]
[1767708816967,0.03723559,3268.9,3267.8,0.01836519]
[1767708817179,0.002,3268.8,3267.1,0.01836519]
[1767708817340,0.002,3268.8,3267.3,0.01836519]
[1767708817678,0.03923559,3268.8,3267.1,0.03060818]
[1767708817850,0.8,3268.7,3267.1,0.03060818]
[1767708818052,0.03723559,3268.6,3267.0,0.01836519]
[1767708818854,3.05950741,3268.5,3266.9,0.03161005]
[1767708819062,0.03723559,3268.4,3266.9,0.001]
[1767708819946,0.8,3268.3,3266.9,0.001]
[1767708820157,0.03723559,3268.2,3266.9,0.001]
[1767708820345,9.17852223,3268.5,3267.0,0.01836519]
[1767708820346,6.11901482,3268.5,3267.0,0.01836519]
[1767708820546,3.096743,3268.5,3267.2,0.01836519]
[1767708820746,0.83723559,3268.4,3267.2,0.01836519]
[1767708820979,6.11938928,3268.3,3267.0,0.01836519]
[1767708821276,0.83723559,3268.2,3267.2,0.01836519]
[1767708821579,0.03723559,3268.2,3267.0,0.01836519]
[1767708821780,0.03723559,3268.2,3267.2,0.01836519]
[1767708822275,0.03723559,3268.2,3267.0,0.01836519]
[1767708822476,0.002,3268.8,3267.7,0.01836519]
[1767708822648,3.06124232,3268.8,3267.7,0.01836519]
[1767708822850,3.09655734,3268.7,3267.6,0.01836519]
[1767708823293,3.06128503,3268.8,3267.6,0.01836519]
[1767708823573,0.03723559,3268.7,3267.6,0.01836519]
[1767708824276,0.002,3268.8,3268.0,0.01836519]
[1767708824578,0.002,3268.8,3268.1,0.01836519]
[1767708824777,0.002,3268.8,3268.0,0.01836519]
[1767708824950,0.002,3268.8,3268.2,0.01836519]
[1767708825149,0.002,3268.8,3268.0,0.01836519]
[1767708825590,0.002,3268.8,3268.2,0.01836519]
[1767708827184,0.002,3268.8,3268.0,0.01836519]
[1767708827771,0.002,3268.8,3268.2,0.01836519]
[1767708827953,0.002,3268.8,3268.0,0.01836519]
[1767708828358,3.85892164,3269.2,3268.0,0.01836519]
[1767708828359,0.99592782,3271.9,3269.5,0.96000062]
[1767708828581,0.99592782,3271.9,3269.0,0.01836519]
[1767708828582,3.05614131,3272.1,3269.7,0.96000062]
[1767708828916,3.05614131,3272.1,3269.8,1.15530239]
[1767708829050,0.00308,3272.2,3270.0,0.01836519]
[1767708829495,0.00308,3272.2,3269.8,1.1369372]
[1767708829787,1.01429301,3272.0,3269.8,0.17693658]
[1767708829950,0.8,3271.9,3269.9,0.791]
[1767708830389,0.99592782,3272.0,3269.9,0.791]
[1767708830590,0.002,3271.9,3269.9,0.791]
[1767708830790,0.002,3271.9,3270.0,0.791]
[1767708830996,6.11465624,3271.9,3270.0,0.791]
[1767708831292,3.05832812,3271.9,3270.0,3.84909759]
[1767708831456,0.002,3271.9,3270.0,7.86720218]
[1767708831661,0.99592782,3272.7,3270.0,7.86720218]
[1767708831662,9.16450281,3273.5,3271.5,0.96000062]
[1767708831879,9.16450281,3273.5,3271.4,0.791]
[1767708831880,7.10559636,3273.5,3271.4,0.791]
[1767708832080,3.05674302,3273.6,3271.5,0.01836519]
[1767708832393,0.002,3273.6,3271.7,0.01836519]
[1767708832586,0.002,3273.6,3272.1,0.01836519]
[1767708833364,0.002,3273.6,3271.5,0.97836581]
[1767708833591,0.002,3273.6,3271.6,0.79]
[1767708833925,0.002,3273.6,3271.6,0.17500006]
[1767708834196,0.002,3273.6,3271.6,0.79]
[1767708834510,0.002,3273.6,3271.6,0.97836581]
[1767708834714,0.002,3273.6,3271.9,0.01836519]
[1767708834879,0.002,3273.6,3272.1,3.05613685]
[1767708835072,0.002,3273.6,3272.1,0.6130791]
[1767708835283,0.002,3273.6,3271.9,0.01836519]
[1767708835284,0.002,3273.6,3272.2,0.79]
[1767708835884,0.002,3273.6,3272.3,0.79]
[1767708836395,0.002,3273.6,3272.0,0.01836519]
[1767708836590,0.002,3273.6,3271.8,0.01836519]
[1767708836591,0.002,3273.6,3272.1,0.79]
[1767708836797,0.002,3273.6,3272.0,3.05619235]
[1767708836997,0.002,3273.6,3272.1,1.11398443]
[1767708837299,0.002,3273.6,3272.1,0.32398443]
[1767708837598,0.002,3273.6,3272.0,0.79]
[1767708838188,0.002,3273.6,3272.1,0.79]
[1767708838497,0.002,3273.6,3272.2,0.79]
[1767708838899,0.97266384,3273.6,3271.2,3.05696923]
[1767708839072,9.16450281,3273.5,3271.3,0.03056888]
[1767708839272,13.19000092,3273.5,3271.4,0.79]
[1767708839681,3.05675645,3273.6,3271.9,0.01836519]
[1767708839906,6.1115129,3273.6,3272.0,0.79]
[1767708840073,6.1115129,3273.6,3272.1,0.01836519]
[1767708840297,6.1115129,3273.6,3271.7,0.94228874]
[1767708840497,6.1115129,3273.6,3272.1,0.79]
[1767708840695,13.19168964,3273.6,3271.3,0.01836519]
[1767708840911,13.19168964,3273.6,3271.4,0.82056795]
[1767708841145,0.97066384,3273.5,3271.6,0.01836519]
[1767708841298,0.8,3273.4,3271.8,0.01836519]
[1767708841622,0.8,3273.3,3272.4,0.01836519]
[1767708841823,0.8,3273.3,3272.0,0.01836519]
[1767708842122,0.8,3273.3,3271.8,0.01836519]
[1767708842323,0.93467586,3273.2,3271.1,0.01836519]
[1767708842541,0.17346759,3273.1,3271.3,0.01836519]
[1767708843005,9.16590282,3273.0,3271.3,0.01836519]
[1767708843324,9.16590282,3273.0,3271.6,0.01836519]
[1767708843964,6.11060188,3273.0,3272.1,0.01836519]
[1767708844098,0.002,3273.3,3272.5,0.01836519]
[1767708844293,3.0570784,3273.3,3272.3,0.04892473]
[1767708844599,3.0570784,3273.3,3272.5,0.01836519]
[1767708845196,0.799,3273.2,3271.8,0.01836519]
[1767708845398,0.799,3273.2,3271.7,0.01836519]
[1767708845594,0.799,3273.2,3271.2,0.01836519]
[1767708845595,0.93467586,3273.1,3271.2,0.01836519]
[1767708845797,0.17336759,3273.0,3271.2,0.33811661]
[1767708846006,1.10804345,3273.0,3271.1,0.01836519]
[1767708846206,0.93467586,3273.0,3271.0,0.03057169]
[1767708846406,0.93467586,3273.0,3270.8,0.04893874]
[1767708846628,0.93467586,3273.0,3271.0,0.01836519]
[1767708846815,0.93467586,3273.0,3271.4,0.01836519]
[1767708847022,0.93467586,3273.0,3271.0,0.04893688]
[1767708847401,9.16618287,3272.9,3271.0,0.01836519]
[1767708847598,0.93467586,3272.8,3270.0,0.90760441]
[1767708847805,0.93467586,3272.8,3270.6,0.01836519]
[1767708848131,0.799,3272.7,3271.0,0.01836519]
[1767708848319,0.17336759,3272.6,3271.0,0.01836519]
[1767708849141,0.17336759,3272.6,3270.9,0.01836519]
[1767708849321,9.16730328,3272.5,3270.9,0.01836519]
[1767708849904,13.1577469,3272.5,3270.6,0.01836519]
[1767708850442,0.799,3272.4,3270.8,0.01836519]
[1767708851335,6.11190904,3272.3,3270.8,0.01836519]
[1767708852139,0.93467586,3273.5,3271.3,0.01836519]
[1767708852336,3.85411426,3273.2,3271.5,0.01836519]
[1767708852711,6.90922852,3273.2,3271.5,0.01836519]
[1767708852909,10.89905158,3273.2,3271.5,0.01836519]
[1767708853150,0.93467586,3273.1,3271.5,0.01836519]
[1767708853308,0.93467586,3273.1,3271.5,0.0489322]
[1767708853724,0.93467586,3272.9,3271.5,0.0489322]
[1767708854206,0.93467586,3272.9,3271.5,0.01836519]
[1767708854737,0.93467586,3272.9,3271.3,0.04893407]
[1767708854902,0.93467586,3272.9,3271.1,0.03057075]
[1767708855109,0.93467586,3272.9,3271.1,3.10598773]
[1767708855308,0.93467586,3272.9,3271.1,0.04893594]
[1767708855540,0.93467586,3272.9,3271.1,3.10595863]
[1767708855839,0.002,3272.5,3271.1,3.10595863]
[1767708856155,0.002,3272.5,3271.2,0.31059586]
[1767708856364,0.002,3272.5,3270.9,0.03157262]
[1767708856640,0.93667586,3272.5,3270.9,0.001]
[1767708857208,0.93467586,3272.1,3270.9,0.001]
[1767708857405,0.002,3272.5,3270.9,0.001]
[1767708857406,0.93467586,3271.9,3270.9,0.001]
[1767708857635,0.799,3271.8,3270.9,0.001]
[1767708857818,9.16954488,3271.7,3270.9,0.001]
[1767708858121,3.05651496,3271.7,3270.9,0.001]
[1767708858324,0.93467586,3271.9,3270.9,0.001]
[1767708858528,0.799,3271.9,3270.9,0.001]
[1767708858913,0.93467586,3271.8,3270.9,0.001]
[1767708859118,0.17336759,3271.7,3270.9,0.001]
[1767708859919,9.16982514,3271.6,3270.9,0.001]
[1767708860118,10.104501,3271.6,3270.9,0.001]
[1767708860336,0.93467586,3271.5,3269.7,0.39679031]
[1767708860942,1.21912452,3271.4,3269.7,0.39679031]
[1767708861129,12.22643352,3271.6,3269.7,0.39679031]
[1767708861130,2.01812452,3271.3,3269.7,0.39679031]
[1767708861330,0.48626111,3271.2,3269.7,0.39679031]
[1767708861532,0.93467586,3271.0,3269.0,0.01836519]
[1767708861843,15.44443352,3271.6,3269.6,0.01836519]
[1767708861844,0.93467586,3270.8,3269.6,0.01836519]
[1767708862140,0.28444866,3270.7,3269.6,0.01836519]
[1767708862333,0.28444866,3270.6,3269.6,0.01836519]
[1767708862529,0.28444866,3270.5,3269.4,3.10760712]
[1767708862743,0.28444866,3270.4,3269.5,0.31076071]
[1767708862948,3.99203644,3270.8,3269.2,0.04895371]
[1767708862949,0.28444866,3270.3,3269.2,0.04895371]
[1767708863126,0.28444866,3270.2,3269.0,0.04895558]
[1767708863448,0.8,3270.5,3269.4,0.01836519]
[1767708863615,0.93467586,3270.8,3269.5,0.03058571]
[1767708863814,0.93467586,3270.8,3269.2,3.10777333]
[1767708863815,3.05736927,3270.8,3269.2,3.10777333]
[1767708864018,0.8,3271.0,3270.2,0.0171677]
[1767708864019,6.11454216,3270.9,3270.2,0.0171677]
[1767708864322,1.73467586,3270.8,3269.4,0.01836519]
[1767708864527,1.73467586,3270.8,3269.6,0.01836519]
[1767708864942,0.93467586,3270.8,3269.7,0.03058384]
[1767708865315,0.93467586,3270.8,3269.6,0.04894997]
[1767708865513,1.73467586,3270.8,3269.6,0.36154712]
[1767708865717,1.73467586,3270.8,3269.0,0.01836519]
[1767708865718,0.93467586,3270.7,3269.0,3.07731621]
[1767708865917,0.8,3270.6,3269.3,0.01836519]
[1767708866143,7.84983194,3270.6,3269.1,0.03058945]
[1767708866343,4.7922539,3270.6,3269.1,3.08948172]
[1767708866517,4.7922539,3270.6,3269.2,0.30894817]
[1767708866718,0.93467586,3270.5,3268.9,0.03059133]
[1767708866917,0.8,3270.4,3269.1,3.05891922]
[1767708867116,0.8,3270.4,3269.2,0.03058852]
[1767708867353,1.73467586,3270.4,3269.2,0.03058852]
[1767708867526,1.73467586,3270.4,3269.1,0.03058945]
[1767708867723,1.73467586,3270.4,3269.2,3.0587773]
[1767708867724,0.93467586,3270.4,3269.2,3.0587773]
[1767708867938,3.05662198,3271.6,3269.1,3.08953011]
[1767708867939,0.93467586,3271.0,3269.5,0.01836519]
[1767708868252,3.99184532,3271.0,3269.6,0.03058478]
[1767708868459,0.93467586,3270.9,3269.6,0.03058478]
[1767708868669,0.93467586,3270.9,3267.7,3.47752256]
[1767708868670,0.93467586,3270.9,3268.5,3.05944552]
[1767708868981,0.93467586,3270.9,3268.6,0.33653868]
[1767708869264,0.93467586,3270.7,3268.7,0.01836519]
[1767708869622,0.93467586,3270.7,3269.5,0.001]
[1767708870015,0.93467586,3270.5,3269.5,0.001]
[1767708870727,0.93467586,3270.5,3268.2,0.03059788]
[1767708870929,0.93467586,3270.3,3268.1,0.01836519]
[1767708871147,0.93467586,3270.1,3267.7,0.04896775]
[1767708871332,0.93467586,3270.1,3267.7,0.01836519]
[1767708871526,0.93467586,3270.1,3267.5,0.04896962]
[1767708871731,0.93467586,3270.1,3267.5,0.03060443]
[1767708871952,4.018,3270.2,3267.4,0.03060537]
[1767708871953,0.9245249,3269.9,3267.4,0.03060537]
[1767708872165,0.9245249,3269.7,3267.3,0.0489715]
[1767708872321,0.9245249,3269.5,3267.3,0.01836519]
[1767708872522,0.9245249,3269.5,3267.4,0.01836519]
[1767708872722,0.9245249,3269.3,3267.2,0.01836519]
[1767708872955,0.9245249,3269.3,3266.9,0.03161005]
[1767708873122,0.94289009,3269.3,3266.9,0.001]
[1767708873455,0.9245249,3269.3,3266.9,0.03161005]
[1767708873654,0.17245249,3269.4,3266.9,0.03161005]
[1767708873655,0.9245249,3269.1,3266.9,0.001]
[1767708873953,0.9245249,3268.9,3266.9,0.001]
[1767708874129,0.9245249,3268.7,3266.9,0.001]
[1767708874329,0.9245249,3268.5,3266.9,0.001]
[1767708875037,0.8,3268.4,3266.9,0.001]
[1767708875226,0.8,3268.4,3267.0,0.01836519]
[1767708875422,0.9245249,3268.5,3267.0,0.01836519]
[1767708875627,0.01836519,3270.1,3267.4,0.01836519]
[1767708875828,0.9245249,3269.9,3267.6,0.01836519]
[1767708876055,0.9245249,3269.7,3267.6,0.01836519]
[1767708876258,0.9245249,3269.5,3267.6,0.01836519]
[1767708876446,1.08293716,3269.4,3267.4,0.01836519]
[1767708876643,1.20746206,3269.3,3267.4,0.01836519]
[1767708876862,0.28293716,3269.2,3267.6,0.01836519]
[1767708877063,0.28293716,3269.1,3267.6,0.01836519]
[1767708877227,6.1169562,3269.6,3267.8,0.01836519]
[1767708877431,1.08278041,3269.5,3267.8,0.04896681]
[1767708877668,0.28278041,3269.4,3267.8,0.31276803]
[1767708877954,0.28278041,3269.3,3267.6,0.0306035]
[1767708878154,9.17599557,3269.4,3267.6,0.01836519]
[1767708878331,0.28274328,3269.3,3267.6,0.01836519]
[1767708878532,9.17599557,3269.4,3267.6,0.01836519]
[1767708878533,0.28274328,3269.2,3267.6,0.01836519]
[1767708878749,6.11733038,3269.4,3267.6,0.01836519]
[1767708878952,0.28274953,3269.3,3267.8,0.01836519]
[1767708879250,0.28274953,3269.2,3267.8,0.01836519]
[1767708879435,6.11733038,3269.4,3267.8,0.01836519]
[1767708879645,0.28271831,3269.3,3267.8,0.01836519]
[1767708879845,0.28271831,3269.2,3267.8,0.01836519]
[1767708880045,6.11733038,3269.4,3267.8,0.01836519]
[1767708880248,6.11770462,3269.2,3267.8,0.01836519]
[1767708880554,0.9245249,3270.0,3268.1,0.01836519]
[1767708880753,0.9245249,3269.8,3267.9,0.03060069]
[1767708880921,2.00718553,3269.7,3267.9,0.03060069]
[1767708881122,0.28266063,3269.6,3267.8,0.03060162]
[1767708881555,0.9245249,3269.5,3267.8,0.03060162]
[1767708882125,6.11733038,3269.4,3267.9,0.001]
[1767708882974,9.17599557,3269.4,3267.9,0.001]
[1767708883548,10.10052047,3269.4,3267.9,0.001]
[1767708883870,1.20743324,3269.3,3267.9,0.001]
[1767708884027,6.11733038,3269.4,3267.9,0.001]
[1767708884232,0.9245249,3269.8,3267.9,0.9064766]
[1767708884233,0.8,3269.3,3267.9,0.9064766]
[1767708884427,0.8,3269.4,3267.9,0.93707729]
[1767708884633,0.8,3269.4,3268.0,0.01836519]
[1767708885447,3.98290946,3269.7,3268.0,0.01836519]
[1767708885653,1.08329869,3269.6,3268.1,0.03059881]
[1767708885848,1.08329869,3269.6,3268.5,0.01836519]
[1767708885849,0.8,3269.6,3268.5,0.01836519]
[1767708886159,0.8,3269.9,3268.4,0.92384179]
[1767708886359,3.34183577,3269.8,3268.5,0.9054766]
[1767708886560,3.34183577,3269.8,3268.4,3.07796594]
[1767708886561,0.9245249,3270.7,3268.7,0.9054766]
[1767708886746,7.19860855,3270.6,3268.8,0.92384179]
[1767708887059,0.28352265,3270.5,3268.8,0.9054766]
[1767708887280,0.28352265,3270.4,3268.8,0.9054766]
[1767708887449,0.28352265,3270.3,3268.8,0.9054766]
[1767708887645,9.97262885,3270.6,3268.8,0.9054766]
[1767708887866,1.08365978,3270.5,3268.8,0.9054766]
[1767708888038,0.28365978,3270.4,3268.8,0.9054766]
[1767708888240,0.28365978,3270.4,3268.6,0.41670944]
[1767708888241,3.05801045,3270.1,3268.7,3.05932021]
[1767708888540,3.05801045,3270.1,3268.6,0.39834425]
[1767708888541,6.1160209,3270.1,3268.8,0.34576645]
[1767708888764,6.1160209,3270.1,3268.4,3.10847356]
[1767708888975,6.1160209,3270.1,3268.5,3.05949889]
[1767708889172,3.05801045,3270.1,3268.6,3.08999761]
[1767708889585,3.0570756,3271.1,3268.6,3.08999761]
[1767708889755,0.9245249,3270.7,3268.6,3.08996572]
[1767708889956,2.00845385,3270.6,3268.7,0.30899657]
[1767708890192,0.28392895,3270.5,3268.7,0.30899657]
[1767708890387,3.05782344,3270.3,3268.7,3.3683058]
[1767708890592,3.05782344,3270.3,3268.8,0.03059226]
[1767708890593,1.08392895,3270.2,3268.8,0.03059226]
[1767708890797,0.28392895,3270.1,3268.8,0.03059226]
[1767708891200,0.28392895,3270.1,3268.9,0.33989063]
[1767708891486,0.28392895,3270.1,3268.8,0.03059226]
[1767708891690,6.11433812,3271.0,3268.8,0.93606886]
[1767708891900,0.28408731,3270.9,3268.8,0.93606886]
[1767708892053,1.08408731,3270.8,3268.8,0.93606886]
[1767708892248,0.28408731,3270.7,3269.0,0.9054766]
[1767708892447,0.28408731,3270.7,3269.1,3.84794588]
[1767708892448,3.05754295,3270.6,3269.1,3.84794588]
[1767708892979,3.05754295,3270.6,3269.1,4.75342248]
[1767708893983,3.05754295,3270.6,3269.2,3.08943004]
[1767708893984,0.002,3270.3,3269.2,3.08943004]
[1767708894158,0.002,3270.3,3269.2,0.03058852]
[1767708894361,0.002,3270.3,3269.3,0.47839805]
[1767708894655,3.05954295,3270.6,3269.3,1.38387465]
[1767708894871,0.002,3270.6,3269.3,1.38387465]
[1767708895069,6.1135905,3271.4,3269.4,0.9054766]
[1767708895275,1.08410846,3271.3,3269.4,0.9054766]
[1767708895571,0.28410846,3271.2,3269.4,0.93606325]
[1767708895764,0.28410846,3271.1,3269.4,0.93606325]
[1767708896088,6.11452504,3270.9,3269.4,0.93606325]
[1767708896469,6.11452504,3270.9,3269.5,1.3113863]
[1767708896675,3.05726252,3270.9,3269.6,0.91190989]
[1767708896876,3.05679525,3271.4,3269.6,0.91190989]
[1767708897068,0.28407468,3271.3,3269.6,0.94249467]
[1767708897263,1.08407468,3271.2,3269.6,0.94249467]
[1767708897468,0.8,3271.3,3269.6,0.94249467]
[1767708897695,0.28399068,3271.2,3269.6,0.94249467]
[1767708897864,0.8,3271.3,3269.6,0.94249467]
[1767708897865,0.28399349,3271.1,3269.6,0.94249467]
[1767708898069,0.8,3271.3,3269.6,0.9415325]
[1767708898390,1.08399494,3271.2,3269.6,0.9415325]
[1767708898691,0.28399494,3271.1,3269.6,0.9415325]
[1767708898891,0.8,3271.3,3269.7,0.40000956]
[1767708899193,0.28400145,3271.2,3269.8,0.03058291]
[1767708899397,0.8,3271.3,3269.8,0.03058291]
[1767708899699,0.28391927,3271.2,3269.6,0.9415325]
[1767708899871,9.16982514,3271.6,3269.9,0.03058197]
[1767708900077,1.08389781,3271.5,3269.7,0.03058384]
[1767708900286,0.28389781,3271.4,3269.7,0.03058384]
[1767708900477,0.28389781,3271.3,3269.7,0.03058384]
[1767708900678,0.8,3271.5,3269.7,0.03058384]
[1767708900871,9.16982514,3271.6,3269.6,0.91094772]
[1767708900872,0.28386675,3271.4,3269.6,0.9415325]
[1767708901096,9.16982514,3271.6,3269.8,0.91190989]
[1767708901097,1.08386675,3271.3,3269.8,0.91190989]
[1767708901301,0.91252852,3272.2,3270.0,0.97498812]
[1767708901467,3.05615622,3272.1,3270.6,0.01836519]
[1767708901668,3.05824805,3272.0,3270.6,0.97498812]
[1767708901869,0.91252852,3271.9,3270.6,0.789]
[1767708902066,6.11284308,3271.8,3270.6,0.789]
[1767708902270,6.11284308,3271.8,3270.6,1.74562293]
[1767708902469,6.11284308,3271.8,3270.7,0.17456229]
[1767708902670,6.11284308,3271.8,3270.1,0.95662293]
[1767708902904,9.16926462,3271.8,3270.1,1.77620303]
[1767708903089,6.11284308,3271.8,3270.1,1.77620303]
[1767708903284,0.8,3271.7,3270.1,1.77620303]
[1767708903478,6.11284308,3271.8,3270.2,4.03289485]
[1767708903685,6.11284308,3271.8,3270.3,0.51582573]
[1767708903891,3.05642154,3271.8,3270.4,3.07601746]
[1767708904112,0.002,3272.5,3271.0,0.97498812]
[1767708904414,0.005,3272.8,3271.6,0.01836519]
[1767708904707,3.0551182,3273.2,3271.8,0.01836519]
[1767708905007,6.1102364,3273.2,3271.8,0.01836519]
[1767708905191,6.1102364,3273.2,3271.7,0.789]
[1767708905775,0.002,3273.3,3271.8,0.97498812]
[1767708906008,6.1120588,3273.3,3271.9,0.789]
[1767708906172,0.91452852,3273.3,3271.3,0.95662293]
[1767708906377,0.91452852,3273.3,3271.4,0.80736519]
[1767708906805,0.91452852,3273.3,3271.5,3.05667246]
[1767708907006,0.002,3273.3,3272.2,0.01836519]
[1767708907174,0.002,3273.6,3272.4,0.01836519]
[1767708907378,3.05679504,3273.6,3272.4,0.01836519]
[1767708907589,0.002,3273.6,3272.4,0.01836519]
[1767708907820,3.05677611,3273.6,3272.4,0.01836519]
[1767708908012,6.11155222,3273.6,3272.3,0.789]
[1767708908324,6.11155222,3273.6,3271.7,3.05645831]
[1767708908325,0.002,3273.4,3271.6,0.80736519]
[1767708908604,0.002,3273.4,3272.1,0.95662293]
[1767708908907,0.002,3273.6,3272.4,0.01836519]
[1767708909111,0.002,3273.6,3272.5,0.789]
[1767708909321,0.002,3273.6,3272.7,0.01836519]
[1767708909517,6.9078027,3274.5,3272.7,0.01836519]
[1767708909691,9.96170405,3274.5,3272.7,0.01836519]
[1767708909894,9.96170405,3274.5,3272.4,0.789]
[1767708909895,0.91252852,3274.4,3272.4,0.789]
[1767708910093,0.91252852,3274.2,3272.4,0.789]
[1767708910495,9.16226367,3274.3,3272.5,0.97498812]
[1767708910496,6.10817578,3274.3,3272.5,0.97498812]
[1767708910696,6.10817578,3274.3,3272.9,0.01836519]
[1767708910896,6.10817578,3274.3,3272.9,0.97498812]
[1767708911087,6.10817578,3274.3,3272.8,0.789]
[1767708911292,9.16226367,3274.3,3272.8,0.789]
[1767708912200,0.91252852,3274.2,3272.8,0.789]
[1767708912401,0.91552852,3274.7,3272.9,0.95662293]
[1767708912595,0.91552852,3274.7,3273.0,0.17456229]
[1767708912596,6.10763913,3274.6,3273.0,0.17456229]
[1767708912822,9.16147017,3274.6,3273.0,0.17456229]
[1767708913025,0.91252852,3274.5,3273.0,0.17456229]
[1767708913326,0.91252852,3274.5,3272.9,0.789]
[1767708913833,6.10763913,3274.6,3273.0,0.97498812]
[1767708913998,3.05380809,3274.6,3273.2,0.01836519]
[1767708914199,0.003,3274.7,3273.4,0.97498812]
[1767708914515,0.003,3274.7,3273.5,0.4030009]
[1767708914714,0.003,3274.7,3273.6,0.789]
[1767708914928,0.003,3274.7,3273.7,0.95662293]
[1767708915595,0.003,3274.7,3273.6,0.80736519]
[1767708915816,0.00199897,3274.7,3273.8,0.01836519]